Cogmind - Beta 13 @@@ ROGUE MODE // 2024.05.17 @ 11:29:26 Player: ForestDarkPsy Result: Self-destructed Performance ------------- Evolutions (3) 1500 Regions Visited (6) 1200 Robots Destroyed (73) 365 Value Destroyed (2032) 2032 Prototype IDs (24) 480 Alien Tech Used (0) 0 Bonus (593) 593 TOTAL SCORE: 6170 Bonus ------- High Alert Combat Kills 15 Follower Combat Kills 295 Aligned with FarCom 300 Friendly Fire -17 Cogmind --------- Core Integrity 227/700 Matter 29/300 Energy 150/150 System Corruption 19% Temperature Cool (71) Movement Core (900) Ox17 Location -7/Factory Parts ------- > --- POWER (1) -------- Micro Nuclear Core > --- PROPULSION (4) --- (None) > --- UTILITY (6) ------ High-capacity Storage Unit > --- WEAPON (2) ------- Enhanced Autogun Enhanced Autogun > --- INVENTORY (20) --- Micro Nuclear Core Flying Fortress v7 Advanced Heat Sink Coolant Injector Large Storage Unit High-capacity Matter Pod (0) Machine Analyzer Hardlight Generator Long-range Tractor Beam Light EM Pulse Cannon Improved Grenade Launcher Remote Datajack Axe Peak State ------------ > --- POWER ------------ Micro Nuclear Core > --- PROPULSION ------- Armored Treads Armored Treads Armored Treads Medium Treads > --- UTILITY ---------- High-capacity Storage Unit Structural Scanner Machine Analyzer Transmission Jammer Hacking Suite Hacking Suite > --- WEAPON ----------- Heavy Assault Cannon > --- INVENTORY -------- Micro Nuclear Core Flying Fortress v7 Advanced Heat Sink Coolant Injector Large Storage Unit High-capacity Matter Pod Machine Analyzer Hardlight Generator Long-range Tractor Beam Light EM Pulse Cannon Enhanced Autogun Enhanced Autogun Advanced Assault Cannon Improved Grenade Launcher Remote Datajack Axe [Rating: 46] Favorites ----------- Power Light Nuclear Core Engine Ion Engine Power Core Light Nuclear Core Propulsion Light Treads Treads Light Treads Wheel Wheel Utility Hacking Suite Device Structural Scanner Storage High-capacity Storage Unit Processor Machine Analyzer Hackware Hacking Suite Protection Light Armor Plating Weapon Minigun Energy Cannon Light EM Pulse Cannon Ballistic Gun Minigun Ballistic Cannon Heavy Assault Cannon Launcher Rocket Launcher Special Weapon Remote Datajack Slashing Weapon Axe Build | -11 -10 -10 -10 -9 -8 -7 ------- Run | Yrd Mat Min Exi Min Mat Fac Slots Evolved 6 | . . . . . 4 2 Power . | . . . . . . . Propulsion 2 | . . . . . 2 . Utility 4 | . . . . . 2 2 Weapon . | . . . . . . . Parts Attached 83 | 6 9 3 2 . 18 45 Power 7 | 1 1 1 . . 1 3 Engine 2 | 1 . . . . . 1 Core 5 | . 1 1 . . 1 2 Reactor . | . . . . . . . Propulsion 24 | 2 2 . 2 . 5 13 Treads 17 | . 2 . 2 . 3 10 Leg . | . . . . . . . Wheel 7 | 2 . . . . 2 3 Hover . | . . . . . . . Flight . | . . . . . . . Utility 23 | 1 4 . . . 8 10 Device 15 | 1 2 . . . 6 6 Storage 2 | . 1 . . . 1 . Processor 2 | . . . . . . 2 Hackware 2 | . . . . . 1 1 Protection 2 | . 1 . . . . 1 Artifact . | . . . . . . . Weapon 29 | 2 2 2 . . 4 19 Energy Gun . | . . . . . . . Energy Cannon 4 | . . . . . 1 3 Ballistic Gun 13 | 2 1 . . . 3 7 Ballistic Cannon 7 | . 1 1 . . . 5 Launcher 2 | . . 1 . . . 1 Special Weapon 2 | . . . . . . 2 Impact Weapon . | . . . . . . . Slashing Weapon 1 | . . . . . . 1 Piercing Weapon . | . . . . . . . Special Melee Weapon . | . . . . . . . Unidentified Prototypes 1 | . . . . . . 1 Corrupted Parts 2 | . . . . . . 2 System Corruption 2 | . . . . . . 2 Parts Lost 20 | . 1 . . . . 19 Power 4 | . 1 . . . . 3 Propulsion 7 | . . . . . . 7 Utility 7 | . . . . . . 7 Weapon 2 | . . . . . . 2 Highest Loss Streak 11 | . 1 . . . . 11 To Critical Strikes . | . . . . . . . Average Slot Usage (%) 96 | . 98 100 100 100 95 94 Core 8 | . 9 14 14 14 9 6 Treads 25 | . 16 28 28 28 29 25 Wheel 3 | . 11 . . . 2 3 Device 14 | . 18 . . . 11 19 Storage 8 | . 8 14 14 14 9 7 Processor 2 | . . . . . . 4 Hackware 7 | . . . . . 9 11 Protection 4 | . . 14 14 14 6 1 Ballistic Gun 8 | . 25 1 . . 15 3 Ballistic Cannon 5 | . 2 14 14 14 . 4 Launcher 2 | . . 12 14 14 1 . Naked Turns . | . . . . . . . Heaviest Build 62 | 8 30 35 35 35 61 62 Greatest Support 88 | 20 40 40 40 40 80 88 Greatest Overweight (x) 6 | . . . . . 3 6 Average Overweight (x) . | . . . . . . . Largest Inventory Capacity 20 | 5 15 15 15 15 20 20 Average Capacity 17 | 5 10 15 15 15 18 20 Most Carried 20 | 5 12 15 15 15 20 20 Average Carried 16 | 3 7 13 14 15 18 18 Final Capacity 20 | 5 15 15 15 15 20 20 Final Carried 20 | 5 12 15 15 15 20 16 Class Distribution -------------------- 42% | Scavenger-Mutant 36% | Mutant 12% | Hacker-Skirmisher 6% | Scavenger-Skirmisher Dominant Class ---------------- Mutant | -10/Materials Mutant | -10/Mines Mutant | -10/Exiles Mutant | -9/Mines Scavenger-Mutant | -8/Materials Scavenger-Mutant | -7/Factory Resources | -11 -10 -10 -10 -9 -8 -7 ----------- Run | Yrd Mat Min Exi Min Mat Fac Matter Collected 2148 | 280 217 102 34 . 486 1029 Remotely . | . . . . . . . Salvage Created 2327 | 115 467 103 . . 713 929 Parts 145 | 3 35 14 . . 37 56 Haulers Intercepted 5 | . 2 . . . 2 1 Recyclers Shooed 2 | . 1 . . . . 1 Parts Field Recycled . | . . . . . . . Retrieved Matter . | . . . . . . . Parts Self-Destructed . | . . . . . . . Prevented . | . . . . . . . Kills | -11 -10 -10 -10 -9 -8 -7 ------- Run | Yrd Mat Min Exi Min Mat Fac Combat Hostiles Destroyed 49 | . 14 9 . . 7 19 Guns 18 | . 8 . . . 7 3 Cannons 23 | . 6 5 . . . 12 AOE 7 | . . 4 . . . 3 Classes Destroyed 13 | 2 4 1 . . 3 3 Worker 1 | . . . . . 1 . Builder 1 | . . . . . . 1 Tunneler 4 | 1 . . . . 1 2 Hauler 5 | . 2 . . . 2 1 Recycler 7 | 1 . . . . 5 1 Operator 2 | . 1 . . . . 1 Watcher 4 | . . . . . 2 2 Swarmer 16 | . 6 6 . . 4 . Grunt 21 | . 8 2 . . 2 9 Sentry 3 | . . . . . 1 2 Demolisher 1 | . . 1 . . . . Hunter 1 | . . . . . . 1 Programmer 7 | . . . . . . 7 Best Kill Streak 7 | 2 7 3 . . 5 4 Combat Bots Only 6 | . 6 3 . . 4 2 Max Kills in Single Turn 2 | 1 2 2 . . 1 2 Gunslinging 1 | . 1 . . . . . Exploded 2 | . . 2 . . . 2 Melee . | . . . . . . . Uniques/NPCs Destroyed . | . . . . . . . Combat | -11 -10 -10 -10 -9 -8 -7 -------- Run | Yrd Mat Min Exi Min Mat Fac Hostile Shots Fired 331 | . 54 26 . . 25 226 Missed 82 | . 13 11 . . 6 52 Damage Taken 4081 | . 466 242 . . 153 3220 Core 643 | . 125 14 . . 31 473 Absorbed by Shields 40 | . . . . . 40 . Regen/Repaired (Parts) 116 | . . . . . . 116 Core Remaining (%) 79 | 100 . . . 44 94 . Volleys Fired 226 | 10 47 18 . . 38 113 Largest 2 | 2 2 1 . . 2 2 Hottest 104 | 40 55 35 . . 56 104 Shots Fired 344 | 20 87 18 . . 71 148 Gun 193 | 20 72 . . . 68 33 Cannon 146 | . 15 16 . . 3 112 Launcher 2 | . . 2 . . . . Special 3 | . . . . . . 3 Kinetic 313 | 20 87 16 . . 69 121 Thermal . | . . . . . . . Explosive 2 | . . 2 . . . . Electromagnetic 26 | . . . . . 2 24 Robot Hit Streak 13 | 5 9 7 . . 12 13 Robot Miss Streak 3 | 2 2 1 . . 3 3 Penetration Max 1 | . . . . . . 1 Secondary Targets 1 | . 1 . . . . . Max Gunslinging Chain 1 | . 1 . . . . . Shots Hit Robots 221 | 12 64 15 . . 42 88 Core Hits 107 | 4 33 11 . . 24 35 Critical Kills 1 | . 1 . . . . . Critical Parts Destroyed . | . . . . . . . Critical Strikes 8 | . 1 . . . . 7 Destroy 1 | . 1 . . . . . Blast 6 | . . . . . . 6 Corrupt 1 | . . . . . . 1 Melee Attacks 1 | . . . . . . 1 Impact . | . . . . . . . Slashing 1 | . . . . . . 1 Piercing . | . . . . . . . Sneak Attacks . | . . . . . . . Combat Hostiles . | . . . . . . . Follow-up Attacks . | . . . . . . . Damage Inflicted 6077 | 100 627 449 . . 801 4100 Guns 1693 | 100 450 . . . 741 402 Cannons 3564 | . 177 242 . . 60 3085 Explosions 809 | . . 207 . . . 602 Melee . | . . . . . . . Ramming 11 | . . . . . . 11 Kinetic 4840 | 100 627 242 . . 741 3130 Thermal 602 | . . . . . . 602 Explosive 207 | . . 207 . . . . Electromagnetic 417 | . . . . . 60 357 Impact . | . . . . . . . Slashing . | . . . . . . . Piercing . | . . . . . . . Highest Corruption 19 | . . . . . . 19 Average Corruption 3 | . . . . . . 3 Corruption Purged . | . . . . . . . Corruption Blocked . | . . . . . . . Effects 55 | . . . . . . 55 Message Errors 9 | . . . . . . 9 Matter Fused 20 | . . . . . . 20 Heat Flow Errors 3 | . . . . . . 3 Energy Discharges 5 | . . . . . . 5 Data Loss (minor) 6 | . . . . . . 6 Data Loss (major) 5 | . . . . . . 5 Misfires 4 | . . . . . . 4 Alerts 1 | . . . . . . 1 Weapon Failures 2 | . . . . . . 2 Overload Shots . | . . . . . . . Overflow Damage 393 | . . . . . 18 375 Projectiles 258 | . . . . . 18 240 Explosions 135 | . . . . . . 135 Melee . | . . . . . . . Knockbacks 24 | . 1 3 . . . 20 Impact . | . . . . . . . Kinetic 23 | . 1 3 . . . 19 Secondary 1 | . . . . . . 1 Self-Inflicted Damage 206 | . . . . . . 206 Shots 2 | . . . . . . 2 Rammed 3 | . . . . . . 3 Targets Rammed 3 | . . . . . . 3 Kicked . | . . . . . . . Crushed . | . . . . . . . Highest Temperature 263 | . 90 25 . . 25 263 Average Temperature 31 | . 20 9 . . 7 46 Received Heat Transfer 1026 | . 240 27 . . 18 741 Effects 1 | . . . . . . 1 Energy Bleed 1 | . . . . . . 1 Siege Activations . | . . . . . . . Robots Corrupted 1 | . . . . . . 1 Combat Hostiles 1 | . . . . . . 1 Parts Fried 2 | . . . . . . 2 Impact Corruptions . | . . . . . . . Robots Melted . | . . . . . . . Combat Hostiles . | . . . . . . . Parts Melted . | . . . . . . . Heat Transferred 400 | . . . . . . 400 Parts Sabotaged . | . . . . . . . Parts Stolen . | . . . . . . . Parts Stripped . | . . . . . . . Power Chain Reactions 1 | . . . . . . 1 Alert | -11 -10 -10 -10 -9 -8 -7 ------- Run | Yrd Mat Min Exi Min Mat Fac Peak Influence 494 | 10 302 175 . . 173 494 Initial 63 | . 6 63 . . . 35 Average 125 | 4 114 73 . . 37 181 Maximum Alert Level 2 | . 1 . . . . 2 Low Security (%) 76 | 100 76 100 . 100 100 60 Level 1 13 | . 23 . . . . 20 Level 2 9 | . . . . . . 18 Level 3 . | . . . . . . . Level 4 . | . . . . . . . Level 5 . | . . . . . . . High Security . | . . . . . . . Max Security . | . . . . . . . Squads Dispatched 18 | . 3 1 . . 1 13 Investigation 1 | . 1 . . . . . Extermination 7 | . . . . . . 7 Reinforcement 8 | . 2 . . . 1 5 Assault 2 | . . 1 . . . 1 Garrison . | . . . . . . . Intercept . | . . . . . . . Searches Triggered . | . . . . . . . Construction Impeded . | . . . . . . . Haulers Reinforced 2 | . . . . . . 2 Active Scanning Responses . | . . . . . . . Cargo Convoy Interrupts . | . . . . . . . Stealth | -11 -10 -10 -10 -9 -8 -7 --------- Run | Yrd Mat Min Exi Min Mat Fac Distress Signals 5 | . 2 . . . 2 1 Communications Jammed 71 | . . . . . . 71 Distress Signals 69 | . . . . . . 69 Times Spotted 100 | . 21 15 . . 21 43 Peak Tracking Total 6 | . 4 4 . . 4 6 Tactical Retreats 2 | . 1 . . . . 1 Traps | -11 -10 -10 -10 -9 -8 -7 ------- Run | Yrd Mat Min Exi Min Mat Fac Traps Triggered 4 | . 1 . . . 1 2 Indirectly . | . . . . . . . Trap Hack Attempts . | . . . . . . . Triggered . | . . . . . . . Disarmed . | . . . . . . . Reprogrammed . | . . . . . . . Reused . | . . . . . . . Traps Extracted . | . . . . . . . Installed . | . . . . . . . Triggered . | . . . . . . . Machines | -11 -10 -10 -10 -9 -8 -7 ---------- Run | Yrd Mat Min Exi Min Mat Fac Machines Disabled 9 | . . 1 . . . 8 Max in Single Turn 2 | . . 1 . . . 2 Machines Repaired . | . . . . . . . Machines Dismantled . | . . . . . . . Machines Sabotaged . | . . . . . . . Overloaded Fab Kills . | . . . . . . . Hacking | -11 -10 -10 -10 -9 -8 -7 --------- Run | Yrd Mat Min Exi Min Mat Fac Machines Accessed 17 | . 4 . 1 . 3 9 Terminals 12 | . 4 . . . 3 5 Fabricators 2 | . . . . . . 2 Repair Stations 2 | . . . . . . 2 Recycling Units . | . . . . . . . Scanalyzers . | . . . . . . . Garrison Access . | . . . . . . . Total Hacks 49 | . 8 . 1 . 15 25 Successful 27 | . 3 . 1 . 7 16 Failed 22 | . 5 . . . 8 9 Catastrophic 3 | . 1 . . . . 2 Database Lockouts . | . . . . . . . Manual 23 | . 3 . 1 . 10 9 Terminals 40 | . 8 . . . 15 17 Fabricators 4 | . . . . . . 4 Repair Stations 4 | . . . . . . 4 Recycling Units . | . . . . . . . Scanalyzers . | . . . . . . . Garrison Access . | . . . . . . . Terminal Hacks 13 | . 2 . 1 . 4 6 Record 1 | . 1 . . . . . Part Schematic 1 | . . . . . 1 . Robot Analysis 2 | . 1 . . . . 1 Level Access Points 1 | . . . . . . 1 Branch Access Points 1 | . . . . . 1 . Terminal Index 1 | . . . . . . 1 Fabricator Index 1 | . . . . . . 1 Alert Level 1 | . . . . . 1 . Unreport Threat 1 | . . . . . . 1 Locate Traps 1 | . . . . . . 1 Zone Layout 1 | . . . . . 1 . Derelict Proto ID Bank 1 | . . . 1 . . . Fabricator Hacks 1 | . . . . . . 1 Build 1 | . . . . . . 1 Repair Station Hacks 4 | . . . . . . 4 Scan Component 2 | . . . . . . 2 Repair 2 | . . . . . . 2 Recycling Unit Hacks . | . . . . . . . Scanalyzer . | . . . . . . . Garrison Access Hacks . | . . . . . . . Unauthorized Hacks 9 | . 1 . . . 3 5 Terminals 9 | . 1 . . . 3 5 Assimilate 2 | . . . . . . 2 Botnet 7 | . 1 . . . 3 3 Fabricators . | . . . . . . . Repair Stations . | . . . . . . . Recycling Units . | . . . . . . . Scanalyzers . | . . . . . . . Garrison Access . | . . . . . . . Data Cores Recovered 1 | . . . . . . 1 Used . | . . . . . . . Hacking Detections 15 | . 4 . . . 3 8 Full Trace Events . | . . . . . . . Feedback Events . | . . . . . . . Feedback Blocked . | . . . . . . . Robot Schematics Acquired . | . . . . . . . Robots Built 2 | . . . . . . 2 Authchips . | . . . . . . . Time 67 | . . . . . . 67 Total Robot Build Rating 8 | . . . . . . 8 Part Schematics Acquired 1 | . . . . . 1 . Parts Built . | . . . . . . . Authchips . | . . . . . . . Time . | . . . . . . . Total Part Build Rating . | . . . . . . . Parts Repaired 2 | . . . . . . 2 Time 63 | . . . . . . 63 Parts Recycled . | . . . . . . . Recycled Matter . | . . . . . . . Retrieved Matter . | . . . . . . . Retrieved Components . | . . . . . . . Parts Scanalyzed . | . . . . . . . Part Schematics Acquired . | . . . . . . . Parts Damaged . | . . . . . . . Bothacking | -11 -10 -10 -10 -9 -8 -7 ------------ Run | Yrd Mat Min Exi Min Mat Fac Used RIF Installer . | . . . . . . . Robots Hacked 2 | . . . . . . 2 Non-combat 2 | . . . . . . 2 Combat . | . . . . . . . Robot Hacks Applied 2 | . . . . . . 2 find_fabricator 1 | . . . . . . 1 check_alert 1 | . . . . . . 1 Relay Couplers Released . | . . . . . . . Fabnet Peak Effective % . | . . . . . . . Robots Rewired . | . . . . . . . Allies Hacked . | . . . . . . . Hacks Repelled . | . . . . . . . Allies | -11 -10 -10 -10 -9 -8 -7 -------- Run | Yrd Mat Min Exi Min Mat Fac Total Allies 6 | . . 1 . 3 . 2 Largest Group 3 | . . 1 . 3 3 2 Highest-Rated Group 64 | . . 31 . 40 40 64 Highest-Rated Ally 32 | . . 31 . 16 16 32 Total Orders 2 | . . . . . . 2 STAY 1 | . . . . . . 1 FOLLOW 1 | . . . . . . 1 Ally Attacks 56 | . . 12 . . 32 12 Total Damage 853 | . . 189 . . 346 318 Kills 11 | . . 4 . . 4 3 Allies Corrupted . | . . . . . . . Allies Melted . | . . . . . . . Intel | -11 -10 -10 -10 -9 -8 -7 ------- Run | Yrd Mat Min Exi Min Mat Fac Robot Analysis Total 2 | . 1 . . . . 1 Derelict Logs Recovered 1 | . . 1 . . . . Drone Launches . | . . . . . . . Drone Recoveries . | . . . . . . . Exploration | -11 -10 -10 -10 -9 -8 -7 ------------- Run | Yrd Mat Min Exi Min Mat Fac Turns Passed 7724 | 112 1003 1017 363 48 1422 3759 Spaces Moved 3765 | 93 537 593 223 27 630 1662 Core 7 | 7 . . . . . . Treads 3188 | . 304 593 223 27 579 1462 Legs . | . . . . . . . Wheels 570 | 86 233 . . . 51 200 Hover . | . . . . . . . Flight . | . . . . . . . Fastest Speed 50 | 50 80 160 160 160 110 101 Average Speed 151 | 77 125 160 160 160 156 159 Slowest Speed 250 | 80 160 160 160 160 160 250 Overloaded Moves . | . . . . . . . Propulsion Burnouts . | . . . . . . . Robots Hopped . | . . . . . . . Cave-ins Triggered . | . . . . . . . Exploration Rate (%) 47 | 4 67 97 61 9 45 47 Regions Visited 6 Branch Regions 3 Pre-discovered Areas 1 | . . 1 . . . . Known Exits Taken . | . . . . . . . Unknown Exits Taken 6 | 1 1 1 1 1 1 . Scrap Searched 2 | . . 2 . . . . Spaces Dug 3 | . . . . . . 3 Terrain Destroyed 147 | . . 15 . . . 132 Melee 1 | . . . . . . 1 Projectile 22 | . . . . . . 22 AOE 124 | . . 15 . . . 109 Terrain Rammed . | . . . . . . . Walls Destroyed . | . . . . . . . Machines Disabled . | . . . . . . . Actions | -11 -10 -10 -10 -9 -8 -7 --------- Run | Yrd Mat Min Exi Min Mat Fac Total 5438 | 113 797 642 231 32 1016 2607 Wait 1256 | . 183 27 . 6 295 745 Move 3759 | 92 536 592 222 26 629 1662 Hop . | . . . . . . . Pick Up 60 | 5 14 2 2 . 20 17 Fast Attach 23 | 6 2 . . . 5 10 Attach 21 | . 3 . . . 2 16 Detach 6 | . 1 . . . 1 4 Swap 39 | . 4 3 2 . 11 19 Drop 44 | . 7 . 5 . 15 17 Fire 226 | 10 47 18 . . 38 113 Melee 1 | . . . . . . 1 Ram . | . . . . . . . Kick . | . . . . . . . Crush 3 | . . . . . . 3 Escape Stasis . | . . . . . . . Rewire . | . . . . . . . Trap . | . . . . . . . Miscellaneous . | . . . . . . . Route ------- -11/Scrapyard -10/Materials (discovered 4 exits: [*Mat x2] / [*Min] / [*Sub]) -10/Mines (discovered 3 exits: [*Mat x2] / *Exi) -10/Exiles -9/Mines -8/Materials -7/Factory (discovered 4 exits: *Fac x4) History --------- Turn | Location | Event 2 | -11/Scrapyard | Met Revision 17 3 | -11/Scrapyard | Discovered new exit (range 16) 113 | -11/Scrapyard | Entered Materials 307 | -10/Materials | Build established: Mutant 375 | -10/Materials | Discovered new exit (range 9) 517 | -10/Materials | Discovered new exit (range 16) 697 | -10/Materials | Discovered new exit (range 13) 880 | -10/Materials | Discovered new exit (range 11) 1116 | -10/Materials | Entered Mines 1173 | -10/Mines | Assembled infested the area 1208 | -10/Mines | Received a Rocket Launcher from a helpful Derelict 1295 | -10/Mines | Discovered new exit (range 6) 1406 | -10/Mines | Core integrity fell below 50% 1448 | -10/Mines | Found a hidden stash of uninstalled traps 1490 | -10/Mines | Learned location of Zion (-7) 1552 | -10/Mines | Discovered new exit (range 4) 1773 | -10/Mines | Met a Derelict testing a Signal Generator 2125 | -10/Mines | Deemed a non-threat by the Exiles lab entrance 2125 | -10/Mines | Discovered new exit (range 5) 2133 | -10/Mines | Entered Exiles 2172 | -10/Exiles | Met 8R-AWN 2201 | -10/Exiles | Met EX-HEX 2247 | -10/Exiles | Met EX-BIN 2266 | -10/Exiles | Aligned with FarCom system 2268 | -10/Exiles | Given EX-Vault access code 2305 | -10/Exiles | Opened EX-Vault 2321 | -10/Exiles | Found Flying Fortress v7 2354 | -10/Exiles | Warned to stay clear of 0b10 Research branches 2399 | -10/Exiles | Met EX-DEC 2482 | -10/Exiles | Discovered new exit (range 11) 2496 | -10/Exiles | Left Exiles lab with Flying Fortress v7 2496 | -10/Exiles | Entered Mines 2498 | -9/Mines | Assisted by bots powering up and referring to "LRC-V3" 2525 | -9/Mines | Discovered new exit (range 8) 2544 | -9/Mines | Entered Materials 2544 | -8/Materials | Accompanied by 3 allies 2544 | -8/Materials | Evolved 4 slots: Propulsion x2, Utility x2 3139 | -8/Materials | Build established: Scavenger-Mutant 3868 | -8/Materials | Discovered new exit (range 15) 3966 | -8/Materials | Entered Factory 3966 | -7/Factory | Evolved 2 slots: Utility x2 5280 | -7/Factory | Discovered new exit (range 7) 5694 | -7/Factory | Fabricated Y-54 Guardian? 6212 | -7/Factory | Discovered new exit (range 12) 6524 | -7/Factory | Identified exit to Factory 6644 | -7/Factory | Repaired Transmission Jammer 7042 | -7/Factory | Build established: Hacker-Skirmisher 7456 | -7/Factory | Repaired Arm. Treads 7566 | -7/Factory | First assault squad dispatched 7701 | -7/Factory | System corruption reached 10% 7717 | -7/Factory | Core integrity fell below 50% 7725 | -7/Factory | Self-destructed Last Messages --------------- 07708_ I-36 Angel distress signal jammed. 07711_ Adv. Assault Cannon destroyed. 07711_ System corrupted by crushing effect (+5). 07712_ R-06 Scavenger collects Arm. Treads. 07712_ I-36 Angel distress signal jammed. 07713_ Arm. Treads destroyed. 07713_ I-36 Angel distress signal jammed. 07714_ Hacking Suite destroyed. 07714_ System corrupted by crushing effect (+2). 07714_ I-36 Angel distress signal jammed. 07717_ Med. Treads destroyed. 07717_ I-36 Angel distress signal jammed. 07720_ K-01 Serf collects debris. 07720_ I-36 Angel distress signal jammed. 07722_ Transmission Jammer destroyed. 07723_ System corrupted: Enh. Autogun jammed. 07724_ Arm. Treads destroyed. 07724_ K-01 Serf collects debris. 07724_ Structural Scanner destroyed. 07725_ System corrupted: Matter fused (-10). Map ----- +----------------------------------------------------+ | ### ##### !!! ] # ???????????????????? | | ### #####! !!! # ???????????????????? | | ### ##?############### ???????????????????? | | ### ##?############### ???????????????????? | | ##????????????????????????????????????? | | #############????????????????????????????????????? | | #############????????????????????????????????????? | | #????????????????????????????????????????????????? | | #?????????????????????????""""?""""??????????????? | | #?????????????????????????""""?""""??????????????? | | #?????????????????????????""""?""""??????????????? | | ??????????????????????????""""?""""??????????????? | | ?????????????????????????????????w???????????????? | | ??????????????????????????""""?""""??????????????? | | ??????????????????????????""""?""""??????????????? | | ?## ??????????????????????""""?""""??????????????? | | + ??????????????????????""""?""""??????????????? | | # ?????????????????????????????????????????????? | | ##?????????????????????????????????????????????? | | ????????^??????????????????????????????????? | | ^ ???????^??????????????????????????????????? | | """ ???????^??????????????????????????????????? | | """ ????????^??????????????????????????????????? | | """ ^ #???????????????? | | #################i###########???????????????? | | "# ] / ] =# kg @ ##???????????????? | | "# # glb ##???????????????? | | [ "# """"""""" # [% % ##???????????????? | | T# # % % ##???????????????? | | "" "# """"""""" # ##???????????????? | | "" "# # """" """" ##???????????????? | | "" "# """"""""" # """" """" ##???????????????? | | ## # """" """" ##???????????????? | | ## " "" # """" """" ##???????????????? | | ## !! "R"" # """" """" ##???????????????? | | = / ! ! """" # """" """" ##???????????????? | | ## g # ##???????????????? | | ########+####################???????????????? | | ####### ## ???????????????? | | ####### ## g ???????????????????? | | ########## ???????????????????? | | ########## ???????????????????? | | # # ???????????????????? | | ? """" !# ###############???????????????????? | | ? """" # ############## ???????????????????? | | ? """" # ##????????????????????????????????? | | ? """" + ##????????????????????????????????? | | ? """" # # ????????????????????????????????? | | ??"""" # # ????????????????????????????????? | | # # # ????????????????????????????????? | +----------------------------------------------------+ Best States ------------- Heat Dissipation 53 Energy Generation 15 Energy Capacity 250 Matter Stores 300 Matter Capacity 300 Sight Range 16 Robot Scan Range 14 Terrain Scan Density 10 Jamming Range 12 Armor Coverage 150 Evasion (%) 44 Target Analysis 5 Recoil Reduction 4 Offensive Hacking 20 Item Schematics ----------------- Imp. Propulsion Shielding | -8/Materials | Hacked Robot Schematics ------------------ None Fabricated ------------ Y-54 Guardian | x2 | -7/Factory | Preloaded Alien Tech Used ----------------- None Achievements -------------- Total Silence Challenges ------------ None Game ------ Seed NeutrinoSuspensionFlamer Manual? 0 Play Time 02:06:20 Cumulative 166.5 hours Start 2024.05.16 @ 22:25:09 End 2024.05.17 @ 11:29:26 Sessions 3 Manual Loads 0 Difficulty Rogue Special Mode None Game No. 150 Rogue 150 Adventurer 0 Explorer 0 Win Type - Total 0 Types 0/0/0/0/0/0/0/0/0 Lore% 39 Gallery% 45 Achievement% 36 Wizard Run 0 Options --------- Layout 0 ASCII 1 Keyboard 0 Movement Mouse Keybinds 0 Fullscreen 1 Font 18/SmallcapsGlow Map View 76x50 Zoom Use 0% Tactical HUD 1 Map Filters NONE Filters NONE Steam 1 RUN: c8f1ba58-e5ef-4f90-a883-ade62d967ee6